lending/lending_fUSD_20250411
["ID","MTS","AMOUNT","RATE_DAILY","PERIOD"]
[357736102,1744403448984,-150.0,0.00037746,2]
[357736103,1744403448995,-150.0,0.00037759,2]
[357736104,1744403449004,-108.30563646,0.00037803,2]
[357736105,1744403449034,-150.0,0.00037761,2]
[357736106,1744403449043,-41.69436354,0.00037803,2]
[357736107,1744403449053,-150.0,0.00037828,2]
[357736108,1744403449062,-150.0,0.00037871,2]
[357736109,1744403449071,-150.0,0.000379,2]
[357736110,1744403449081,-150.0,0.00037906,2]
[357736111,1744403449090,-150.0,0.00037975,2]
[357736112,1744403449100,-4599.80100391,0.00038,2]
[357736113,1744403449117,-150.0,0.00037807,2]
[357736114,1744403449127,-4556.11589993,0.00038,2]
[357736115,1744403449146,-150.0,0.00037791,2]
[357736116,1744403449155,-150.0,0.00037821,2]
[357736117,1744403449166,-23489.37646729,0.00038,2]
[357736118,1744403449187,-150.0,0.00037944,2]
[357736119,1744403449196,-150.0,0.00037961,2]
[357736120,1744403449206,-17.83985984,0.00038,2]
[357736121,1744403472600,304.83,0.00027425,30]
[357736122,1744403578803,-250.0,0.00019,2]
[357736135,1744404632049,-300.0,0.00021,2]
[357736136,1744404632059,-150.0,0.00021917,2]
[357736137,1744404632068,-350.0,0.00023,2]
[357736138,1744404632079,-150.0,0.00023287,2]
[357736139,1744404632089,-150.0,0.00024657,2]
[357736140,1744404632098,-23.98119106,0.000249,7]
[357736141,1744404632110,-235.88397494,0.000249,7]
[357736142,1744404632119,-151.0,0.000249,7]
[357736143,1744404632129,-400.0,0.00025,2]
[357736144,1744404632138,-154.04371161,0.00025108,2]
[357736145,1744404632148,-999.99,0.00025208,2]
[357736146,1744404632157,-150.99,0.00025208,2]
[357736147,1744404632166,-44.44945261,0.00025208,10]
[357736148,1744404632178,-237.99600119,0.00025208,10]
[357736149,1744404632188,-248.90882828,0.00025209,2]
[357736150,1744404632214,-542.3471793,0.00025209,2]
[357736208,1744404638853,-1897.37258192,0.00025209,2]
[357736210,1744404640201,-323.169975,0.00025209,2]
[357736211,1744404640308,-786.22063483,0.00025209,2]
[357736212,1744404640321,-305.33339345,0.00025209,2]
[357736213,1744404640365,-38278.58095462,0.00025209,2]
[357736214,1744404640634,-16044.13676112,0.00025209,2]
[357736215,1744404640644,-6441.68,0.00025209,2]
[357736216,1744404640654,-299.99,0.00025209,7]
[357736217,1744404640663,-9999.99,0.00025209,2]
[357736218,1744404640673,-150.99,0.00025209,2]
[357736219,1744404640682,-150.0,0.00026027,2]
[357736220,1744404640691,-450.0,0.00027,2]
[357736221,1744404640701,-150.0,0.00027397,2]
[357736222,1744404640710,-1327.0,0.00027445,2]
[357736223,1744404640720,-2045.0,0.00027445,2]
[357736224,1744404640730,-791.0,0.00027445,2]
[357736225,1744404640739,-907.0,0.00027445,2]
[357736227,1744404640748,-1278.0,0.00027445,2]
[357736229,1744404640757,-1022.72973889,0.00027445,2]
[357736264,1744404643068,-283.08209812,0.00027445,2]
[357736266,1744404643443,-131.18816299,0.00027445,2]
[357736268,1744404643452,-544.0,0.00027445,2]
[357736269,1744404643461,-2361.21064523,0.00027445,2]
[357736270,1744404643493,-1783.78935477,0.00027445,2]
[357736271,1744404643502,-152.0,0.00027445,2]
[357736272,1744404643511,-1523.224,0.00027445,2]
[357736273,1744404643521,-1121.0,0.00027445,2]
[357736274,1744404643531,-250.0,0.00027748,2]
[357736275,1744404643539,-150.0,0.00028767,2]
[357736276,1744404643548,-500.0,0.00029,2]
[357736277,1744404643557,-1000.0,0.00029788,2]
[357736278,1744404643566,-160.774669,0.0003,7]
[357736279,1744404643575,-288.10432643,0.00030048,2]
[357736280,1744404643586,-991.72567357,0.00030048,2]
[357736281,1744404643596,-150.0,0.00030136,2]
[357736282,1744404643605,-584.32,0.00030137,2]
[357736283,1744404643615,-21324.23456064,0.00030285,2]
[357736284,1744404643624,-1327.0,0.00030445,2]
[357736285,1744404643633,-2001.464,0.00030445,2]
[357736286,1744404643642,-791.0,0.00030445,2]
[357736287,1744404643651,-907.0,0.00030445,2]
[357736288,1744404643660,-599.188,0.00030445,2]
[357736289,1744404643670,-1437.0,0.00030445,2]
[357736290,1744404643679,-544.0,0.00030445,2]
[357736291,1744404643688,-4145.0,0.00030445,2]
[357736292,1744404643697,-152.0,0.00030445,2]
[357736293,1744404643706,-1121.0,0.00030445,2]
[357736294,1744404643715,-625.76343109,0.0003045,5]
[357736295,1744404643724,-250.0,0.00030511,2]
[357736296,1744404643733,-505.31,0.00030511,2]
[357736297,1744404643742,-200.0,0.00030511,2]
[357736298,1744404643751,-166.66,0.00030791,2]
[357736299,1744404643760,-550.0,0.00031,2]
[357736300,1744404643770,-150.0,0.00031506,2]
[357736301,1744404643779,-477.13642877,0.00031762,2]
[357736302,1744404643788,-166.66,0.00031807,2]
[357736303,1744404643969,-304.83,0.00032315,30]
[357736304,1744404643979,-975.24,0.00032607,2]
[357736305,1744404643989,-2465.65097943,0.00032702,2]
[357736306,1744404643999,-166.66,0.00032824,2]
[357736307,1744404644008,-150.0,0.00032876,2]
[357736308,1744404644017,-600.0,0.00033,2]
[357736309,1744404644027,-257.07,0.00033028,2]
[357736310,1744404644036,-177.66096124,0.00033345,2]
[357736311,1744404644046,-14786.95614805,0.00033397,2]
[357736312,1744404644055,-1327.0,0.00033445,2]
[357736313,1744404644064,-791.0,0.00033445,2]
[357736314,1744404644074,-907.0,0.00033445,2]
[357736315,1744404644083,-1437.0,0.00033445,2]
[357736316,1744404644092,-544.0,0.00033445,2]
[357736317,1744404644102,-4145.0,0.00033445,2]
[357736318,1744404644111,-152.0,0.00033445,2]
[357736319,1744404644120,-1121.0,0.00033445,2]
[357736320,1744404644130,-200.0,0.00033521,7]
[357736321,1744404644139,-150.0,0.0003369,2]
[357736322,1744404644148,-166.66,0.0003384,2]
[357736323,1744404644158,-1000.0,0.00034082,2]
[357736324,1744404644168,-150.0,0.00034246,2]
[357736325,1744404644177,-500.0,0.00034247,2]
[357736326,1744404644187,-256.12,0.00034458,2]
[357736327,1744404644196,-150.0,0.00034548,10]
[357736328,1744404644205,-23900.0,0.00034581,2]
[357736329,1744404644215,-500.0,0.00034795,2]
[357736330,1744404644224,-166.66,0.00034856,2]
[357736331,1744404644234,-975.24,0.00034871,2]
[357736332,1744404644244,-650.0,0.00035,2]
[357736333,1744404644253,-160.01,0.00035,2]
[357736334,1744404644263,-500.0,0.00035343,2]
[357736335,1744404644272,-150.0,0.00035616,2]
[357736336,1744404644282,-831.226,0.00035765,43]
[357736337,1744404644292,-300.0,0.00035828,2]
[357736338,1744404644302,-166.66,0.00035873,2]
[357736339,1744404644312,-500.0,0.00035891,2]
[357736340,1744404644321,-1262.82,0.00036177,5]
[357736341,1744404644331,-500.0,0.00036439,2]
[357736342,1744404644341,-213.0,0.00036445,2]
[357736343,1744404644351,-1327.0,0.00036445,2]
[357736344,1744404644360,-170.349,0.00036445,2]
[357736345,1744404644370,-382.427,0.00036445,2]
[357736346,1744404644379,-225.94,0.00036445,2]
[357736347,1744404644389,-544.0,0.00036445,2]
[357736348,1744404644399,-765.289,0.00036445,2]
[357736349,1744404644408,-152.0,0.00036445,2]
[357736350,1744404644417,-1117.0,0.00036445,2]
[357736351,1744404644427,-193.0529275,0.00036859,4]
[357736352,1744404644439,-150.0,0.00036986,2]
[357736353,1744404644449,-500.0,0.00036987,2]
[357736354,1744404644459,-700.0,0.00037,2]
[357736355,1744404644469,-1476.86,0.00037,2]
[357736356,1744404644479,-1238.72,0.00037006,5]
[357736357,1744404644489,-975.24,0.00037135,2]
[357736358,1744404644499,-300.0,0.00037198,2]
[357736359,1744404644508,-179.11376655,0.000372,103]
[357736360,1744404644519,-179.11376654,0.000372,103]
[357736361,1744404644529,-304.83,0.00037205,30]
[357736362,1744404644539,-500.0,0.00037535,2]
[357736363,1744404644548,-9148.2544,0.0003779,2]
[357736364,1744404644557,-37189.5376,0.000378,2]
[357736365,1744404644566,-500.0,0.000378,2]
[357736366,1744404644576,-2001.1216,0.0003781,3]
[357736367,1744404644586,-2000.0,0.0003781,3]
[357736368,1744404644595,-150.0,0.0003782,2]
[357736369,1744404644606,-150.0,0.00037846,2]
[357736370,1744404644616,-505.63277805,0.00037873,5]
[357736371,1744404644625,-500.0,0.00037873,5]
[357736372,1744404644634,-506.31522021,0.00037873,5]
[357736373,1744404644643,-500.0,0.00037873,5]
[357736374,1744404644653,-500.0,0.00037888,15]
[357736375,1744404644662,-500.0,0.00037888,15]
[357736376,1744404644672,-500.0,0.00037888,15]
[357736377,1744404644682,-500.0,0.00037888,15]
[357736378,1744404644691,-169.29504307,0.00037888,15]
[357736379,1744404644701,-500.0,0.00037888,15]
[357736380,1744404644710,-500.0,0.00037888,15]
[357736381,1744404644720,-500.0,0.00037888,15]
[357736382,1744404644730,-500.0,0.00037888,15]
[357736383,1744404644739,-500.0,0.00037888,15]
[357736384,1744404644749,-500.0,0.00037888,15]
[357736385,1744404644759,-500.0,0.00037888,15]
[357736386,1744404644768,-500.0,0.00037888,15]
[357736387,1744404644778,-500.0,0.00037888,15]
[357736388,1744404644787,-500.0,0.00037888,15]
[357736389,1744404644797,-500.0,0.00037888,15]
[357736390,1744404644806,-500.0,0.00037888,15]
[357736391,1744404644816,-500.0,0.00037888,15]
[357736392,1744404644825,-627.25391806,0.00037888,15]
[357736393,1744404644835,-500.0,0.00037888,15]
[357736394,1744404644844,-500.0,0.00037888,15]
[357736395,1744404644853,-500.0,0.00037888,15]
[357736396,1744404644862,-500.0,0.00037888,15]
[357736397,1744404644872,-500.0,0.00037888,15]
[357736398,1744404644881,-500.0,0.00037888,15]
[357736399,1744404644891,-33699.3096169,0.0003789,4]
[357736400,1744404644900,-39567.15766449,0.000379,2]
[357736401,1744404646324,-9266.65381608,0.000379,2]
[357736402,1744404646336,-386.30471986,0.000379,2]
[357736405,1744404761728,-150.0,0.00031158,2]
[357736407,1744405405196,-151.85925873,0.00019,2]
[357736409,1744405559765,-98.14074127,0.00019,2]
[357736410,1744405559789,-72.49823043,0.0002,2]
[357736411,1744405576748,-154.589163,0.0002,2]
[357736412,1744405604250,-319.78979253,0.0002,2]
[357736413,1744405604933,-160.52535,0.0002,2]
[357736419,1744405836062,-163.8995461,0.0002,2]
[357736420,1744405836072,-300.0,0.00021,2]
[357736421,1744405836082,-350.0,0.00023,2]
[357736422,1744405836091,-400.0,0.00025,2]
[357736423,1744405836101,-451.64822429,0.00026427,2]
[357736424,1744405836111,-151.85925873,0.00026749,2]
[357736425,1744405836121,-748.99,0.00026849,2]
[357736426,1744405836130,-450.0,0.00027,2]
[357736427,1744405836140,-1327.0,0.00027445,2]
[357736428,1744405836149,-378.083,0.00027445,2]
[357736429,1744405836159,-152.0,0.00027445,2]
[357736430,1744405836168,-500.0,0.00029,2]
[357736431,1744405836178,-293.86895925,0.00029,2]
[357736432,1744405836188,-160.69773948,0.00030335,2]
[357736433,1744405836197,-150.99,0.00030435,2]
[357736434,1744405836207,-1312.332,0.00030445,2]
[357736435,1744405836216,-1052.13793298,0.00030535,2]
[357736436,1744405836226,-678.69333917,0.00030535,2]
[357736437,1744405836390,-395.45502393,0.00030535,2]
[357736438,1744405836400,-160.69773943,0.00030864,2]
[357736439,1744405836410,-550.0,0.00031,2]
[357736440,1744405836419,-160.69773943,0.00031394,2]
[357736441,1744405836428,-160.69773943,0.00031923,2]
[357736442,1744405836438,-154.589163,0.00032365,2]
[357736443,1744405836447,-160.69773943,0.00032453,2]
[357736444,1744405836457,-748.99,0.00032646,2]
[357736445,1744405836466,-160.69773943,0.00032982,2]
[357736446,1744405836476,-600.0,0.00033,2]
[357736447,1744405836486,-160.69773943,0.00033511,2]
[357736448,1744405836495,-160.69773943,0.00034041,2]
[357736449,1744405836505,-200.0,0.00034367,2]
[357736450,1744405836515,-305.0097,0.00034383,2]
[357736451,1744405836525,-23900.0,0.00034483,2]
[357736452,1744405836534,-160.69773943,0.0003457,2]
[357736453,1744405836544,-828.95,0.00034671,2]
[357736454,1744405836554,-153.5,0.00034805,2]
[357736455,1744405836564,-650.0,0.00035,2]
[357736456,1744405836574,-405.0,0.00035,2]
[357736457,1744405836583,-183.37,0.00035286,2]
[357736458,1744405836593,-166.66,0.00035513,2]
[357736459,1744405836602,-1000.0,0.00036297,2]
[357736460,1744405836611,-421.09,0.00036307,2]
[357736461,1744405836621,-49407.51110925,0.00036335,2]
[357736463,1744405836631,-500.0,0.00036345,2]
[357736465,1744405836640,-18657.42189983,0.00036345,2]
[357736467,1744405836649,-200.0,0.00036577,7]
[357736469,1744405836658,-151.83,0.00036593,2]
[357736470,1744405836667,-183.37,0.00036656,2]
[357736472,1744405836676,-166.66,0.00036686,2]
[357736474,1744405836686,-193.0529275,0.00036859,4]
[357736475,1744405836695,-828.95,0.00036934,2]
[357736476,1744405836704,-160.85,0.00036935,2]
[357736477,1744405836714,-250.0,0.00036951,2]
[357736478,1744405836723,-700.0,0.00037,2]
[357736479,1744405836732,-5000.0,0.00037,2]
[357736480,1744405836742,-150.0,0.00037132,2]
[357736481,1744405836751,-1073.4132825,0.00037142,5]
[357736482,1744405836760,-1088.68694149,0.00037142,5]
[357736483,1744405836769,-243.86,0.00037159,30]
[357736484,1744405836779,-179.11376654,0.000372,103]
[357736485,1744405836788,-664.981,0.0003743,48]
[357736486,1744405836797,-177.66096123,0.0003743,2]
[357736487,1744405836808,-224.3698,0.0003743,2]
[357736488,1744405836827,-9333.6966,0.0003743,2]
[357736489,1744405836843,-20000.0,0.00037472,5]
[357736490,1744405836852,-315.6185,0.0003752,2]
[357736491,1744405836862,-6148.0055,0.0003752,2]
[357736492,1744405836871,-1184.9798,0.0003752,2]
[357736493,1744405836881,-214.0,0.0003753,2]
[357736495,1744405836890,-81796.74736973,0.0003753,2]
[357736497,1744405836900,-339.662,0.0003753,2]
[357736499,1744405836909,-500.0,0.00037573,5]
[357736501,1744405836919,-191.72879419,0.00037623,16]
[357736502,1744405836928,-2120.4445,0.0003781,3]
[357736504,1744405836937,-150.0,0.0003785,2]
[357736506,1744405836946,-166.66,0.00037858,2]
[357736508,1744405836955,-150.0,0.00037876,2]
[357736510,1744405836964,-155.29327338,0.0003788,2]
[357736512,1744405836973,-2885.92750939,0.00037889,2]
[357736514,1744405836983,-151.00000001,0.0003789,4]
[357736515,1744405836992,-500.0,0.0003789,2]
[357736517,1744405837001,-2380.3588,0.0003789,2]
[357736519,1744405837010,-2881.4989,0.0003789,2]
[357736521,1744405837019,-225.0,0.0003789,2]
[357736523,1744405837028,-2146.04035304,0.00037894,3]
[357736525,1744405837037,-150.01320829,0.000379,11]
[357736527,1744405837046,-170.90800558,0.000379,2]
[357736529,1744405837055,-150.0,0.00037946,2]
[357736531,1744405837065,-177.17405165,0.00037973,5]
[357736533,1744405837074,-33455.068183,0.00037975,4]
[357736535,1744405837083,-500.0,0.00037979,15]
[357736537,1744405837092,-500.0,0.00037979,15]
[357736539,1744405837101,-468.50653015,0.00037979,15]
[357736541,1744405837110,-500.0,0.00037979,15]
[357736542,1744405837119,-500.0,0.00037979,15]
[357736544,1744405837129,-500.0,0.00037979,15]
[357736546,1744405837138,-500.0,0.00037979,15]
[357736548,1744405837146,-500.0,0.00037979,15]
[357736550,1744405837155,-500.0,0.00037979,15]
[357736552,1744405837164,-500.0,0.00037979,15]
[357736554,1744405837173,-500.0,0.00037979,15]
[357736556,1744405837182,-500.0,0.00037979,15]
[357736558,1744405837191,-500.0,0.00037979,15]
[357736560,1744405837200,-500.0,0.00037979,15]
[357736562,1744405837210,-500.0,0.00037979,15]
[357736564,1744405837219,-500.0,0.00037979,15]
[357736566,1744405837228,-500.0,0.00037979,15]
[357736568,1744405837237,-500.0,0.00037979,15]
[357736570,1744405837246,-500.0,0.00037979,15]
[357736572,1744405837255,-500.0,0.00037979,15]
[357736573,1744405837264,-553.62099784,0.00037979,15]
[357736575,1744405837274,-589.07774264,0.00037979,15]
[357736577,1744405837283,-500.0,0.00037979,15]
[357736579,1744405837292,-500.0,0.00037979,15]
[357736580,1744405837301,-500.0,0.00037979,15]
[357736581,1744405837310,-500.0,0.00037979,15]
[357736582,1744405837319,-500.0,0.00037979,15]
[357736583,1744405837328,-500.0,0.00037979,15]
[357736584,1744405837338,-500.0,0.00037979,15]
[357736585,1744405837347,-500.0,0.00037979,15]
[357736586,1744405837356,-212.35441985,0.00037979,15]
[357736587,1744405837365,-350.0,0.00037979,15]
[357736588,1744405837374,-500.0,0.00037979,15]
[357736589,1744405837384,-133820.272732,0.0003798,4]
[357736590,1744405837393,-4684.35920644,0.0003798,4]
[357736591,1744405837402,-151.45,0.0003798,2]
[357736592,1744405837411,-217457.94319,0.0003799,4]
[357736593,1744405837421,-70265.3880966,0.0003799,4]
[357736594,1744405837430,-386.2478903,0.0003799,2]
[357736595,1744405837439,-151.45,0.0003799,2]
[357736596,1744405837448,-151.45,0.0003799,2]
[357736597,1744405837457,-3023.6128758,0.00037995,2]
[357736598,1744405837642,-152.0,0.00038,5]
[357736599,1744405837660,-485949.98270286,0.00038,2]
[357736600,1744405837670,-378.00813265,0.00038,120]
[357736601,1744405837679,-324.75623563,0.00038,120]
[357736602,1744405837688,-500.52898804,0.00038,2]
[357736603,1744405837697,-1800.0,0.00038,39]
[357736604,1744405837706,-300.0,0.00038,120]
[357736605,1744405837715,-1017.0,0.00038,25]
[357736606,1744405837725,-216.0,0.00038,2]
[357736607,1744405837734,-216.0,0.00038,2]
[357736608,1744405837743,-150.0,0.00038,2]
[357736609,1744405837752,-7709.94764798,0.00038,2]
[357736610,1744405837763,-528.79,0.00038,2]
[357736611,1744405837772,-300.0,0.00038,2]
[357736612,1744405837781,-8664.0651418,0.0003807,2]
[357736613,1744405837791,-701.3147667,0.00038096,2]
[357736614,1744405837800,-9368.71841288,0.00038112,4]
[357736615,1744405837810,-86920.5049295,0.00038122,2]
[357736616,1744405837822,-1262.61,0.00038158,5]
[357736617,1744405837831,-1256.77,0.00038158,5]
[357736618,1744405837840,-1272.72,0.00038158,5]
[357736619,1744405837851,-1249.48,0.00038158,5]
[357736620,1744405837861,-1446.72964322,0.00038158,5]
[357736621,1744405837870,-1228.74,0.00038159,5]
[357736622,1744405837880,-341.65,0.00038269,2]
[357736623,1744405837891,-5991.24,0.00038356,5]
[357736624,1744405837901,-219.59976518,0.00038356,5]
[357736625,1744405837910,-300.0,0.0003838,2]
[357736626,1744405837919,-172.74121236,0.000384,33]
[357736627,1744405837929,-888.06686151,0.00038438,2]
[357736628,1744405837939,-748.99,0.00038443,2]
[357736629,1744405837950,-2885.92750934,0.00038512,2]
[357736631,1744405837961,-209.0,0.0003872,30]
[357736632,1744405837971,-300.0,0.0003876,2]
[357736633,1744405837980,-1253.14,0.00038888,5]
[357736635,1744405837990,-1270.19,0.00038893,5]
[357736637,1744405837999,-230.0,0.00039,10]
[357736638,1744405838008,-3296.07405669,0.00039,5]
[357736639,1744405838017,-13000.0,0.00039,7]
[357736640,1744405838026,-46745.72239915,0.00039,30]
[357736641,1744405838035,-1800.0,0.00039,40]
[357736642,1744405838045,-750.0,0.00039,2]
[357736643,1744405838055,-1241.1,0.00039,5]
[357736644,1744405838065,-166.66,0.0003903,2]
[357736645,1744405838075,-2885.92750934,0.00039136,2]
[357736646,1744405838084,-300.0,0.0003914,2]
[357736647,1744405838094,-124.24986263,0.00039188,2]
[357736649,1744405838107,-27.20013737,0.00039188,2]
[357736650,1744405838116,-828.95,0.00039198,2]
[357736651,1744405838125,-519.31,0.000392,2]
[357736652,1744405838134,-170.90800557,0.00039435,2]
[357736653,1744405838143,-301.0,0.000395,30]
[357736654,1744405838152,-300.0,0.0003952,2]
[357736655,1744405838161,-1421.249781,0.0003955,32]
[357736656,1744405838170,-341.65,0.00039589,2]
[357736657,1744405838179,-209.62154776,0.0003962,2]
[357736658,1744405838188,-209.0,0.0003964,30]
[357736659,1744405838197,-1000.66,0.000397,33]
[357736660,1744405838207,-2885.92750934,0.00039759,2]
[357736661,1744405838216,-150.041118,0.00039798,120]
[357736662,1744405838225,-1000.66,0.0003985,34]
[357736663,1744405838234,-150.0,0.000399,4]
[357736664,1744405838244,-425.0,0.00039973,120]
[357736665,1744405838253,-1030.60804859,0.00039989,10]
[357736666,1744405838262,-150.0,0.00039989,2]
[357736667,1744405838271,-500.0,0.00039999,2]
[357736668,1744405838280,-500.0,0.00039999,2]
[357736669,1744405838289,-500.0,0.00039999,2]
[357736670,1744405838299,-500.0,0.00039999,2]
[357736671,1744405838310,-666.0,0.00039999,10]
[357736672,1744405838319,-589.47948931,0.0004,2]
[357736673,1744405838328,-9096.11838202,0.0004,2]
[357736674,1744405838338,-378.73844817,0.0004,2]
[357736675,1744405838347,-5065.18007893,0.0004,2]
[357736676,1744405838356,-212.27032372,0.0004,2]
[357736677,1744405838366,-150.0,0.0004,2]
[357736678,1744405838376,-423.16,0.0004,10]
[357736679,1744405838385,-155.52205646,0.0004,5]
[357736680,1744405838394,-152.3,0.0004,2]
[357736681,1744405838403,-3440.61811361,0.0004,10]
[357736682,1744405838412,-967.53247969,0.0004,20]
[357736683,1744405838421,-152.0,0.0004,2]
[357736684,1744405838430,-517.15341632,0.0004,2]
[357736685,1744405838439,-2600.0,0.0004,4]
[357736686,1744405838449,-5147.32214788,0.0004,30]
[357736687,1744405838459,-969.91,0.0004,30]
[357736688,1744405838468,-307.97891823,0.0004,30]
[357736689,1744405838478,-3050.93201734,0.0004,30]
[357736690,1744405838487,-428.0,0.0004,120]
[357736691,1744405838496,-327.0,0.0004,120]
[357736692,1744405838505,-1173.87109692,0.0004,2]
[357736693,1744405838514,-378.00813265,0.0004,120]
[357736694,1744405838523,-324.75623563,0.0004,120]
[357736695,1744405838533,-1800.0,0.0004,41]
[357736696,1744405838542,-1069.0,0.0004,14]
[357736697,1744405838551,-20918.324781,0.0004,3]
[357736698,1744405838560,-502.90706935,0.0004,20]
[357736699,1744405838570,-500.0,0.0004,30]
[357736700,1744405838579,-522.32235932,0.0004,2]
[357736701,1744405838588,-47858.44410217,0.0004,2]
[357736702,1744405838598,-1000.0,0.0004,9]
[357736703,1744405838607,-1000.0,0.0004,9]
[357736704,1744405838617,-150.0,0.0004,120]
[357736705,1744405838626,-1000.66,0.0004,36]
[357736706,1744405838635,-510.584675,0.0004,10]
[357736707,1744405838644,-1000.0,0.0004,30]
[357736708,1744405838654,-519.31,0.000401,2]
[357736709,1744405838663,-150.041118,0.00040198,120]
[357736710,1744405838672,-166.66,0.00040202,2]
[357736711,1744405838681,-2885.92750934,0.00040383,15]
[357736712,1744405838690,-1525.0,0.00040463,7]
[357736713,1744405838699,-150.041118,0.00040498,120]
[357736714,1744405838708,-1664.20639782,0.000405,15]
[357736715,1744405838717,-209.0,0.0004057,30]
[357736716,1744405838726,-203.0,0.0004057,56]
[357736717,1744405838735,-151.0,0.0004066,14]
[357736718,1744405838744,-151.0,0.0004066,14]
[357736719,1744405838754,-151.0,0.0004066,14]
[357736721,1744405838763,-151.0,0.0004066,14]
[357736722,1744405838772,-500.0,0.00040747,30]
[357736723,1744405838781,-500.0,0.00040747,30]
[357736724,1744405838790,-500.0,0.00040747,30]
[357736725,1744405838799,-152.0,0.00040751,3]
[357736726,1744405838813,-150.041118,0.00040798,120]
[357736727,1744405838822,-156.650906,0.00040798,14]
[357736728,1744405838831,-151.0,0.00040798,14]
[357736729,1744405838840,-151.0,0.00040798,14]
[357736730,1744405838851,-151.0,0.00040798,14]
[357736731,1744405838860,-257.510091,0.00040798,14]
[357736732,1744405838869,-257.510091,0.00040798,14]
[357736733,1744405838878,-151.0,0.00040798,14]
[357736734,1744405838887,-500.0,0.00040829,2]
[357736735,1744405838899,-500.0,0.00040829,2]
[357736736,1744405838909,-500.0,0.00040829,2]
[357736737,1744405838919,-500.0,0.00040829,2]
[357736738,1744405838929,-715.49493453,0.00040829,10]
[357736739,1744405838938,-300.0,0.00040829,10]
[357736740,1744405838947,-500.0,0.00040829,2]
[357736741,1744405838957,-1088.06320745,0.0004083,2]
[357736742,1744405839041,-187.11441988,0.00041,30]
[357736743,1744405839054,-838.7,0.000375,3]
[357736744,1744405839071,-9561.050223,0.000375,3]
[357736749,1744405840349,-378.05348448,0.000375,3]
[357736750,1744405840364,-652.420016,0.000375,3]
[357736751,1744405840377,-1092.15660128,0.000375,3]
[357736752,1744405840390,-225.0,0.0003789,2]
[357736753,1744405840400,-9.74339872,0.0004083,2]
[357736754,1744405840552,-1041.1660869,0.0004083,2]
[357736755,1744405840565,-347.47155165,0.0004083,2]
[357736756,1744405840578,-3239.60702948,0.0004083,2]
[357736757,1744405840629,-38582.6943527,0.0004083,2]
[357736758,1744405840639,-1000.0,0.00040834,2]
[357736759,1744405840650,-164.81541,0.00040888,7]
[357736760,1744405840660,-170.90800557,0.00040971,2]
[357736761,1744405840671,-1026.74951578,0.0004099,2]
[357736762,1744405840681,-500.0,0.00040999,2]
[357736763,1744405840691,-500.0,0.00040999,2]
[357736764,1744405840702,-500.0,0.00040999,2]
[357736765,1744405840712,-300.0,0.00040999,10]
[357736766,1744405840723,-500.0,0.00040999,2]
[357736767,1744405840733,-18726.91708095,0.00041,5]
[357736768,1744405840743,-5600.0,0.00041,2]
[357736769,1744405840757,-3604.44595922,0.00041,30]
[357736776,1744405843212,-858.6849167,0.00041,30]
[357736778,1744405843623,-5349.7547042,0.00041,30]
[357736779,1744405843633,-1800.0,0.00041,42]
[357736780,1744405843642,-15281.18599447,0.00041,5]
[357736781,1744405843652,-25900.0,0.00041,2]